[Event "Cracovia Festival-A 2023"]
[Site "Krakow"]
[Date "2024.01.03"]
[Round "8.21"]
[White "Sieciechowicz, Marcin"]
[Black "Selbes, Tamer Tarik"]
[Result "1-0"]
[ECO "D31"]
[WhiteElo "2391"]
[BlackElo "2185"]
[Annotator "RC"]
[PlyCount "129"]
[EventDate "2023.12.24"]
[EventType "swiss"]
[EventCountry "POL"]
[SourceTitle "playchess.com"]
[Source "ChessBase"]
[SourceQuality "1"]
[TimeControl "40/5400+30:1800+30"]

1. d4 {[%emt 0:00:03]} d5 {[%emt 0:15:02]} 2. c4 {[%emt 0:00:17]} e6 {[%emt 0:00:19]} 3. Nc3 {[%emt 0:00:06]} h6 {[%emt 0:00:13]} 4. cxd5 {[%emt 0:02:45]} exd5 {[%emt 0:01:59]} 5. Bf4 {[%emt 0:00:16]} c6 {[%emt 0:00:50]} 6. Qc2 {[%emt 0:01:39]} Bd6 {[%emt 0:01:55]} 7. Bxd6 {[%emt 0:05:41]} Qxd6 {[%emt 0:00:06]} 8. e3 {[%emt 0:00:39]} Nf6 {[%emt 0:02:44]} 9. Nf3 {[%emt 0:00:46]} O-O {[%emt 0:01:35]} 10. Bd3 {[%emt 0:00:35]} Re8 {[%emt 0:00:26]} 11. h3 {[%emt 0:02:24]} Nbd7 {[%emt 0:03:28]} 12. O-O {[%emt 0:03:58]} Qe7 {[%emt 0:00:57]} 13. Nd2 {[%emt 0:04:38]} Nf8 {[%emt 0:05:10]} 14. Rfe1 {[%emt 0:05:08]} Ne6 {[%emt 0:00:14]} 15. Nf3 {[%emt 0:01:18]} Ng5 {[%emt 0:02:47]} 16. Ne5 {[%emt 0:03:37]} Nge4 {[%emt 0:08:04]} 17. f3 {[%emt 0:18:05]} Nd6 {[%emt 0:02:03]} 18. Rad1 {[%emt 0:04:12]} Be6 {[%emt 0:05:38]} 19. Qf2 {[%emt 0:02:07]} Nd7 {[%emt 0:10:14]} 20. Nxd7 {[%emt 0:01:39]} Qxd7 {[%emt 0:03:06]} 21. e4 {[%emt 0:00:11]} dxe4 {[%emt 0:07:23]} 22. fxe4 {[%emt 0:00:33]} f5 {[%emt 0:00:09]} 23. e5 {[%emt 0:02:49]} Ne4 {[%emt 0:10:25]} 24. Bxe4 {[%emt 0:01:22]} fxe4 {[%emt 0:00:04]} 25. Rxe4 {[%emt 0:00:48]} Rf8 {[%emt 0:00:31]} 26. Rf4 {[%emt 0:01:42]} Rxf4 {[%emt 0:00:07]} 27. Qxf4 {[%emt 0:00:03]} Rf8 {[%emt 0:00:03]} 28. Qe3 {[%emt 0:00:48]} Rf5 {[%emt 0:01:08]} 29. b3 {[%emt 0:02:31]} Rg5 {[%emt 0:01:22]} 30. Kh2 {[%emt 0:01:33]} Qf7 {[%emt 0:11:00]} 31. Ne4 {[%emt 0:01:16]} Rg6 {[%emt 0:00:25]} 32. Rd2 {[%emt 0:02:50]} Bd5 {[%emt 0:00:11]} 33. Nc3 {[%emt 0:01:10]} h5 {[%emt 0:00:35]} 34. Nxd5 {[%emt 0:01:02]} Qxd5 {[%emt 0:00:02]} 35. Qf3 {[%emt 0:00:34]} Qxf3 {[%emt 0:03:10]} 36. gxf3 {[%emt 0:00:02]} Rg5 {[%emt 0:02:27]} 37. f4 {[%emt 0:02:33]} Rf5 {[%emt 0:00:07]} 38. Kg3 {[%emt 0:01:38]} g5 {[%emt 0:01:02]} 39. fxg5 {[%emt 0:01:11]} Rxg5+ {[%emt 0:00:04]} 40. Kf3 {[%emt 0:00:00]} Kf7 {[%emt 0:00:00]} 41. Rg2 {[%emt 0:00:56]} Rf5+ {[%emt 0:00:26]} 42. Ke3 {[%emt 0:00:35]} c5 {[%emt 0:01:50]} 43. Ke4 {[%emt 0:00:57]} Rf1 {[%emt 0:00:04]} 44. dxc5 {[%emt 0:02:07]} Re1+ {[%emt 0:00:27]} 45. Kd4 {[%emt 0:01:06]} Rd1+ {[%emt 0:00:12]} 46. Kc4 {[%emt 0:00:18]} Rc1+ {[%emt 0:00:18]} 47. Kb4 {[%emt 0:00:39]} Re1 {[%emt 0:00:34]} 48. Rg5 {[%emt 0:02:36]} Re4+ {[%emt 0:01:46]} 49. Kb5 {[%emt 0:00:08]} Rh4 {[%emt 0:00:17]} 50. e6+ {[%emt 0:01:18]} Kxe6 {[%emt 0:00:31]} 51. Rg7 {[%emt 0:00:04]} a6+ {[%emt 0:00:57]} 52. Kb6 {[%emt 0:00:32]} Rb4+ {[%emt 0:01:00]} 53. Ka7 {[%emt 0:00:23]} Rb5 {[%emt 0:01:14]} 54. Rxb7 {[%emt 0:00:44]} Rxc5 {[%emt 0:00:04]} 55. Kxa6 {[%emt 0:00:22]} Rc2 {[%emt 0:00:56]} 56. a4 {[%emt 0:00:23]} Rh2 {[%emt 0:00:06]} 57. b4 {[%emt 0:00:36]} Rxh3 {[%emt 0:00:03]} 58. Rh7 {[%emt 0:00:55]} Kd5 {[%emt 0:14:33]} 59. b5 {[%emt 0:01:23]} h4 {[%emt 0:01:04]} 60. b6 {[%emt 0:00:34]} Kc6 {[%emt 0:00:28]} 61. b7 {[%emt 0:00:34]} Rb3 {[%emt 0:00:20]} 62. Ka7 {[%emt 0:00:18]} Rb4 {[%emt 0:01:18]} 63. Rh6+ {[%emt 0:00:17]} Kc7 {[%emt 0:00:32]} 64. b8=Q+ {[%emt 0:00:06]} Rxb8 {[%emt 0:00:08]} 65. Rh7+ {[%emt 0:00:03]} 1-0

[Event "Cracovia Festival-A 2023"]
[Site "Krakow"]
[Date "2024.01.03"]
[Round "8.22"]
[White "Anwesh, Upadhyaya"]
[Black "Valiyev, Shahin"]
[Result "1-0"]
[ECO "B90"]
[WhiteElo "2350"]
[BlackElo "2158"]
[Annotator "RC"]
[PlyCount "41"]
[EventDate "2023.12.24"]
[EventType "swiss"]
[EventCountry "POL"]
[SourceTitle "playchess.com"]
[Source "ChessBase"]
[SourceQuality "1"]
[TimeControl "40/5400+30:1800+30"]

1. e4 {[%emt 0:18:07]} c5 {[%emt 0:00:04]} 2. Nf3 {[%emt 0:00:05]} d6 {[%emt 0:00:04]} 3. d4 {[%emt 0:00:05]} cxd4 {[%emt 0:00:05]} 4. Nxd4 {[%emt 0:00:03]} Nf6 {[%emt 0:00:06]} 5. Nc3 {[%emt 0:00:03]} a6 {[%emt 0:00:05]} 6. Be3 {[%emt 0:00:15]} e5 {[%emt 0:00:19]} 7. Nb3 {[%emt 0:00:09]} Be6 {[%emt 0:00:26]} 8. Qd2 {[%emt 0:00:30]} Be7 {[%emt 0:00:30]} 9. O-O-O {[%emt 0:00:22]} Nbd7 {[%emt 0:03:31]} 10. f4 {[%emt 0:00:13]} b5 {[%emt 0:00:19]} 11. f5 {[%emt 0:00:46]} Bc4 {[%emt 0:00:04]} 12. Kb1 {[%emt 0:00:08]} O-O {[%emt 0:02:17]} 13. g4 {[%emt 0:03:13]} Nxg4 {[%emt 0:03:36]} 14. Rg1 {[%emt 0:00:07]} Nxe3 {[%emt 0:02:58]} 15. Qxe3 {[%emt 0:00:04]} Kh8 {[%emt 0:01:58]} 16. Nd2 {[%emt 0:03:24]} Bxf1 {[%emt 0:05:20]} 17. Rdxf1 {[%emt 0:00:05]} Nf6 {[%emt 0:00:43]} 18. Rf3 {[%emt 0:03:47]} Rc8 {[%emt 0:03:15]} 19. Rh3 {[%emt 0:04:05]} b4 {[%emt 0:49:25]} 20. Nd5 {[%emt 0:01:23]} Nxd5 {[%emt 0:01:04]} 21. Rxg7 {[%emt 0:01:42]} 1-0

[Event "Cracovia Festival-A 2023"]
[Site "Krakow"]
[Date "2024.01.03"]
[Round "8.23"]
[White "Dubnevych, Maksym"]
[Black "Buchenau, Frank"]
[Result "1/2-1/2"]
[ECO "E16"]
[WhiteElo "2340"]
[BlackElo "2135"]
[Annotator "RC"]
[PlyCount "168"]
[EventDate "2023.12.24"]
[EventType "swiss"]
[EventCountry "POL"]
[SourceTitle "playchess.com"]
[Source "ChessBase"]
[SourceQuality "1"]
[TimeControl "40/5400+30:1800+30"]

1. d4 {[%emt 0:00:09]} Nf6 {[%emt 0:00:08]} 2. c4 {[%emt 0:00:06]} e6 {[%emt 0:00:07]} 3. Nf3 {[%emt 0:00:02]} b6 {[%emt 0:00:12]} 4. g3 {[%emt 0:00:03]} Bb7 {[%emt 0:00:11]} 5. Bg2 {[%emt 0:00:05]} Bb4+ {[%emt 0:00:08]} 6. Bd2 {[%emt 0:00:20]} Bxd2+ {[%emt 0:00:33]} 7. Qxd2 {[%emt 0:03:25]} O-O {[%emt 0:00:36]} 8. Nc3 {[%emt 0:02:24]} d6 {[%emt 0:00:59]} 9. d5 {[%emt 0:01:16]} e5 {[%emt 0:02:45]} 10. O-O {[%emt 0:00:20]} a5 {[%emt 0:01:14]} 11. b3 {[%emt 0:02:29]} Qe7 {[%emt 0:09:17]} 12. e4 {[%emt 0:04:21]} Bc8 {[%emt 0:07:04]} 13. Ne1 {[%emt 0:03:52]} Na6 {[%emt 0:03:09]} 14. Nc2 {[%emt 0:02:31]} Nc5 {[%emt 0:01:26]} 15. Rae1 {[%emt 0:04:18]} Bd7 {[%emt 0:02:21]} 16. h3 {[%emt 0:17:31]} Nh5 {[%emt 0:04:56]} 17. Bf3 {[%emt 0:02:03]} Nf6 {[%emt 0:02:33]} 18. Bg2 {[%emt 0:04:02]} Nh5 {[%emt 0:00:23]} 19. Bf3 {[%emt 0:09:19]} Nf6 {[%emt 0:00:09]} 20. Kg2 {[%emt 0:00:17]} Ne8 {[%emt 0:10:10]} 21. Bg4 {[%emt 0:00:42]} Nxe4 {[%emt 0:03:13]} 22. Nxe4 {[%emt 0:07:01]} f5 {[%emt 0:00:58]} 23. Bxf5 {[%emt 0:06:07]} Bxf5 {[%emt 0:00:25]} 24. f4 {[%emt 0:00:12]} Qd7 {[%emt 0:18:00]} 25. g4 {[%emt 0:00:59]} Bxe4+ {[%emt 0:00:45]} 26. Rxe4 {[%emt 0:00:02]} Nf6 {[%emt 0:00:27]} 27. Re3 {[%emt 0:01:14]} Rae8 {[%emt 0:01:24]} 28. Qe2 {[%emt 0:06:42]} exf4 {[%emt 0:05:53]} 29. Rxf4 {[%emt 0:00:07]} Rxe3 {[%emt 0:00:37]} 30. Qxe3 {[%emt 0:00:49]} c5 {[%emt 0:06:33]} 31. dxc6 {[%emt 0:02:36]} Qxc6+ {[%emt 0:00:07]} 32. Qf3 {[%emt 0:00:07]} Qxf3+ {[%emt 0:02:15]} 33. Kxf3 {[%emt 0:00:46]} d5 {[%emt 0:04:37]} 34. Ne3 {[%emt 0:13:11]} dxc4 {[%emt 0:00:57]} 35. bxc4 {[%emt 0:00:04]} h6 {[%emt 0:02:24]} 36. h4 {[%emt 0:00:43]} Rd8 {[%emt 0:01:15]} 37. g5 {[%emt 0:00:30]} Nh5 {[%emt 0:02:30]} 38. Re4 {[%emt 0:00:22]} hxg5 {[%emt 0:00:24]} 39. hxg5 {[%emt 0:00:45]} Rd2 {[%emt 0:00:31]} 40. a4 {[%emt 0:00:00]} Ra2 {[%emt 0:00:00]} 41. Nd5 {[%emt 0:26:31]} Rxa4 {[%emt 0:06:18]} 42. Nxb6 {[%emt 0:00:03]} Ra3+ {[%emt 0:01:27]} 43. Kg4 {[%emt 0:00:30]} g6 {[%emt 0:03:00]} 44. c5 {[%emt 0:01:27]} Rg3+ {[%emt 0:03:07]} 45. Kh4 {[%emt 0:00:20]} Rc3 {[%emt 0:00:24]} 46. Nd7 {[%emt 0:06:44]} Ng3 {[%emt 0:04:23]} 47. Ra4 {[%emt 0:02:46]} Nf5+ {[%emt 0:02:58]} 48. Kg4 {[%emt 0:00:02]} Rc4+ {[%emt 0:04:18]} 49. Rxc4 {[%emt 0:00:02]} Ne3+ {[%emt 0:00:07]} 50. Kf4 {[%emt 0:00:03]} Nxc4 {[%emt 0:00:06]} 51. Nb6 {[%emt 0:04:13]} Na3 {[%emt 0:00:31]} 52. Ke5 {[%emt 0:00:01]} Kf7 {[%emt 0:00:24]} 53. Kd6 {[%emt 0:00:09]} Nb5+ {[%emt 0:00:51]} 54. Kd7 {[%emt 0:02:13]} Nd4 {[%emt 0:00:56]} 55. Nc4 {[%emt 0:00:33]} a4 {[%emt 0:00:22]} 56. Ne5+ {[%emt 0:00:05]} Kg7 {[%emt 0:00:16]} 57. Nc4 {[%emt 0:00:38]} Kf7 {[%emt 0:00:50]} 58. Ne5+ {[%emt 0:00:47]} Kg7 {[%emt 0:00:03]} 59. c6 {[%emt 0:00:14]} Nb5 {[%emt 0:04:24]} 60. Nc4 {[%emt 0:00:14]} Kf7 {[%emt 0:03:12]} 61. Na3 {[%emt 0:00:36]} Nc3 {[%emt 0:05:48]} 62. Kd6 {[%emt 0:00:54]} Ne4+ {[%emt 0:00:32]} 63. Kd5 {[%emt 0:00:23]} Nc3+ {[%emt 0:01:08]} 64. Kd6 {[%emt 0:00:01]} Ne4+ {[%emt 0:00:20]} 65. Ke5 {[%emt 0:00:28]} Nc5 {[%emt 0:00:57]} 66. Kd5 {[%emt 0:00:30]} Na6 {[%emt 0:01:12]} 67. Kd6 {[%emt 0:00:01]} Ke8 {[%emt 0:00:34]} 68. Nb5 {[%emt 0:00:17]} Kf7 {[%emt 0:00:25]} 69. Na3 {[%emt 0:00:37]} Ke8 {[%emt 0:00:27]} 70. Nb5 {[%emt 0:00:21]} Kf7 {[%emt 0:00:07]} 71. Kd7 {[%emt 0:00:26]} Nb8+ {[%emt 0:00:27]} 72. Kd6 {[%emt 0:01:15]} Nxc6 {[%emt 0:00:13]} 73. Kxc6 {[%emt 0:00:44]} Ke6 {[%emt 0:00:06]} 74. Nd4+ {[%emt 0:00:16]} Ke5 {[%emt 0:00:13]} 75. Nc2 {[%emt 0:00:03]} Kf5 {[%emt 0:00:18]} 76. Kb5 Kxg5 {[%emt 0:00:08]} 77. Kxa4 {[%emt 0:00:02]} Kf4 {[%emt 0:00:13]} 78. Kb3 {[%emt 0:00:36]} g5 {[%emt 0:00:23]} 79. Kc3 {[%emt 0:00:02]} g4 {[%emt 0:00:25]} 80. Kd2 {[%emt 0:00:01]} Kf3 {[%emt 0:00:28]} 81. Ne3 {[%emt 0:00:05]} g3 {[%emt 0:00:12]} 82. Nf5 {[%emt 0:00:02]} g2 {[%emt 0:00:11]} 83. Nh4+ {[%emt 0:00:01]} Kf2 {[%emt 0:00:07]} 84. Nxg2 {[%emt 0:00:01]} Kxg2 {[%emt 0:00:07]} 1/2-1/2

[Event "Cracovia Festival-A 2023"]
[Site "Krakow"]
[Date "2024.01.03"]
[Round "8.24"]
[White "Ongut, Tamas Gunes"]
[Black "Babiarz, Arkadiusz"]
[Result "1-0"]
[ECO "D27"]
[WhiteElo "2313"]
[BlackElo "2129"]
[Annotator "RC"]
[PlyCount "65"]
[EventDate "2023.12.24"]
[EventType "swiss"]
[EventCountry "POL"]
[SourceTitle "playchess.com"]
[Source "ChessBase"]
[SourceQuality "1"]
[TimeControl "40/5400+30:1800+30"]

1. d4 {[%emt 0:08:57]} d5 {[%emt 0:00:03]} 2. Nf3 {[%emt 0:00:08]} Nf6 {[%emt 0:00:06]} 3. c4 {[%emt 0:00:04]} dxc4 {[%emt 0:00:50]} 4. e3 {[%emt 0:00:09]} e6 {[%emt 0:00:06]} 5. Bxc4 {[%emt 0:00:06]} a6 {[%emt 0:00:11]} 6. O-O {[%emt 0:00:09]} c5 {[%emt 0:00:05]} 7. e4 {[%emt 0:00:05]} Nxe4 {[%emt 0:12:48]} 8. Qe2 {[%emt 0:00:09]} Nf6 {[%emt 0:12:08]} 9. d5 {[%emt 0:00:07]} b5 {[%emt 0:11:35]} 10. dxe6 {[%emt 0:00:08]} fxe6 {[%emt 0:16:32]} 11. Bxe6 {[%emt 0:00:08]} Bxe6 {[%emt 0:00:22]} 12. Ng5 {[%emt 0:00:53]} Ra7 {[%emt 0:03:43]} 13. Nxe6 {[%emt 0:07:47]} Re7 {[%emt 0:02:16]} 14. Re1 {[%emt 0:07:16]} Qc8 {[%emt 0:02:44]} 15. Nc3 {[%emt 0:07:13]} Nc6 {[%emt 0:02:32]} 16. Nd5 {[%emt 0:08:04]} Nxd5 {[%emt 0:00:05]} 17. Qh5+ {[%emt 0:00:06]} g6 {[%emt 0:00:02]} 18. Qxd5 {[%emt 0:00:07]} Nd4 {[%emt 0:03:53]} 19. Ng7+ {[%emt 0:05:38]} Bxg7 {[%emt 0:00:04]} 20. Rxe7+ {[%emt 0:00:07]} Kxe7 {[%emt 0:00:03]} 21. Bg5+ {[%emt 0:00:06]} Kf8 {[%emt 0:11:48]} 22. Re1 {[%emt 0:02:41]} Nf5 {[%emt 0:03:38]} 23. g4 {[%emt 0:04:29]} Bh6 {[%emt 0:02:20]} 24. Bf6 {[%emt 0:09:48]} Bg7 {[%emt 0:00:01]} 25. Re6 {[%emt 0:09:33]} Nd4 {[%emt 0:01:54]} 26. Bxg7+ {[%emt 0:02:34]} Kxg7 {[%emt 0:00:05]} 27. Qe5+ {[%emt 0:01:17]} Kg8 {[%emt 0:01:43]} 28. Re8+ {[%emt 0:00:26]} Qxe8 {[%emt 0:00:05]} 29. Qxe8+ {[%emt 0:00:06]} Kg7 {[%emt 0:00:05]} 30. Qe5+ {[%emt 0:00:09]} Kg8 {[%emt 0:00:03]} 31. Qxc5 {[%emt 0:00:34]} Ne6 {[%emt 0:01:17]} 32. Qc8+ {[%emt 0:01:59]} Nf8 {[%emt 0:00:05]} 33. Qxa6 {[%emt 0:01:47]} 1-0

[Event "Cracovia Festival-A 2023"]
[Site "Krakow"]
[Date "2024.01.03"]
[Round "8.25"]
[White "Cieslak, Patryk"]
[Black "Lehocz, Jozsef Jr."]
[Result "1-0"]
[ECO "A52"]
[WhiteElo "2284"]
[BlackElo "2116"]
[Annotator "RC"]
[PlyCount "93"]
[EventDate "2023.12.24"]
[EventType "swiss"]
[EventCountry "POL"]
[SourceTitle "playchess.com"]
[Source "ChessBase"]
[SourceQuality "1"]
[TimeControl "40/5400+30:1800+30"]

1. d4 {[%emt 0:00:02]} Nf6 {[%emt 0:00:52]} 2. c4 {[%emt 0:00:05]} e5 {[%emt 0:01:22]} 3. dxe5 {[%emt 0:00:05]} Ng4 {[%emt 0:00:17]} 4. Bf4 {[%emt 0:00:12]} Nc6 {[%emt 0:01:33]} 5. Nf3 {[%emt 0:00:11]} Bb4+ {[%emt 0:01:22]} 6. Nbd2 {[%emt 0:00:08]} Qe7 {[%emt 0:02:20]} 7. e3 {[%emt 0:00:19]} Ngxe5 {[%emt 0:04:26]} 8. Nxe5 {[%emt 0:00:51]} Nxe5 {[%emt 0:00:44]} 9. Be2 {[%emt 0:00:11]} O-O {[%emt 0:11:13]} 10. O-O {[%emt 0:00:37]} Ng6 {[%emt 0:12:41]} 11. Bg3 {[%emt 0:00:39]} Bd6 {[%emt 0:12:43]} 12. Bxd6 {[%emt 0:00:57]} Qxd6 {[%emt 0:00:40]} 13. Ne4 {[%emt 0:00:19]} Qe5 {[%emt 0:07:30]} 14. Nc3 {[%emt 0:15:08]} d6 {[%emt 0:03:22]} 15. Qd2 {[%emt 0:04:10]} Bf5 {[%emt 0:06:08]} 16. Nb5 {[%emt 0:13:11]} c6 {[%emt 0:10:47]} 17. Nd4 {[%emt 0:24:51]} Rad8 {[%emt 0:03:20]} 18. Rfd1 {[%emt 0:02:10]} Bc8 {[%emt 0:01:54]} 19. Nf3 {[%emt 0:02:40]} Qf6 {[%emt 0:00:32]} 20. Qd4 {[%emt 0:03:08]} Ne5 {[%emt 0:01:53]} 21. Nxe5 {[%emt 0:05:21]} Qxe5 {[%emt 0:00:08]} 22. Rd2 {[%emt 0:01:49]} Qa5 {[%emt 0:03:05]} 23. b3 {[%emt 0:05:41]} d5 {[%emt 0:03:31]} 24. c5 {[%emt 0:04:24]} Rfe8 {[%emt 0:01:49]} 25. b4 {[%emt 0:01:21]} Qc7 {[%emt 0:00:33]} 26. Bf3 {[%emt 0:04:10]} Bf5 {[%emt 0:02:02]} 27. Rad1 {[%emt 0:00:22]} h6 {[%emt 0:00:40]} 28. Qh4 {[%emt 0:02:00]} Qe7 {[%emt 0:00:53]} 29. Qf4 {[%emt 0:03:32]} Qe5 {[%emt 0:00:33]} 30. Rd4 {[%emt 0:00:07]} Qxf4 {[%emt 0:01:09]} 31. Rxf4 {[%emt 0:00:02]} Be4 {[%emt 0:00:10]} 32. h4 {[%emt 0:05:35]} Bxf3 {[%emt 0:04:53]} 33. gxf3 {[%emt 0:00:02]} Re5 {[%emt 0:00:37]} 34. a4 {[%emt 0:01:27]} a6 {[%emt 0:00:39]} 35. Rb1 {[%emt 0:00:42]} Ra8 {[%emt 0:00:20]} 36. b5 {[%emt 0:00:51]} axb5 {[%emt 0:00:04]} 37. axb5 {[%emt 0:00:02]} Ra5 {[%emt 0:01:39]} 38. bxc6 {[%emt 0:00:57]} bxc6 {[%emt 0:00:01]} 39. Rb8+ {[%emt 0:00:01]} Kh7 {[%emt 0:00:08]} 40. Rxf7 {[%emt 0:00:00]} Kg6 {[%emt 0:00:00]} 41. Rbb7 {[%emt 0:01:34]} Kh5 {[%emt 0:03:42]} 42. Rxg7 {[%emt 0:02:32]} Rxc5 {[%emt 0:05:19]} 43. Rbf7 {[%emt 0:06:41]} Rc4 {[%emt 0:10:48]} 44. f4 {[%emt 0:00:54]} Re6 {[%emt 0:00:49]} 45. Rf5+ {[%emt 0:01:40]} Kxh4 {[%emt 0:00:10]} 46. Kg2 {[%emt 0:02:13]} d4 {[%emt 0:03:48]} 47. Kf3 {[%emt 0:00:46]} 1-0

[Event "Cracovia Festival-A 2023"]
[Site "Krakow"]
[Date "2024.01.03"]
[Round "8.26"]
[White "Nemsadze, Daviti"]
[Black "Kaliszuk, Kamil"]
[Result "1-0"]
[ECO "C92"]
[WhiteElo "2253"]
[BlackElo "2107"]
[Annotator "RC"]
[PlyCount "85"]
[EventDate "2023.12.24"]
[EventType "swiss"]
[EventCountry "POL"]
[SourceTitle "playchess.com"]
[Source "ChessBase"]
[SourceQuality "1"]
[TimeControl "40/5400+30:1800+30"]

1. e4 {[%emt 0:00:04]} e5 {[%emt 0:00:55]} 2. Nf3 {[%emt 0:00:18]} Nc6 {[%emt 0:00:21]} 3. Bb5 {[%emt 0:00:01]} a6 {[%emt 0:00:18]} 4. Ba4 {[%emt 0:00:08]} Nf6 {[%emt 0:00:33]} 5. O-O {[%emt 0:00:04]} Be7 {[%emt 0:02:02]} 6. Re1 {[%emt 0:01:44]} b5 {[%emt 0:00:47]} 7. Bb3 {[%emt 0:00:04]} d6 {[%emt 0:00:18]} 8. c3 {[%emt 0:00:09]} O-O {[%emt 0:00:32]} 9. h3 {[%emt 0:00:03]} Bb7 {[%emt 0:00:56]} 10. d4 {[%emt 0:09:19]} Nd7 {[%emt 0:01:22]} 11. Nbd2 {[%emt 0:09:04]} exd4 {[%emt 0:01:45]} 12. cxd4 {[%emt 0:01:49]} Bf6 {[%emt 0:00:44]} 13. Nf1 {[%emt 0:01:23]} Na5 {[%emt 0:00:20]} 14. Bc2 {[%emt 0:00:24]} Re8 {[%emt 0:00:20]} 15. N1h2 {[%emt 0:23:15]} c5 {[%emt 0:03:15]} 16. Ng4 {[%emt 0:01:47]} Bxd4 {[%emt 0:00:22]} 17. Nxd4 {[%emt 0:00:19]} cxd4 {[%emt 0:00:07]} 18. Qxd4 {[%emt 0:01:31]} Rc8 {[%emt 0:00:10]} 19. Ne3 {[%emt 0:11:50]} Nf6 {[%emt 0:10:56]} 20. f3 {[%emt 0:09:27]} d5 {[%emt 0:05:43]} 21. exd5 {[%emt 0:07:01]} Nxd5 {[%emt 0:17:36]} 22. Qd3 {[%emt 0:05:54]} Qh4 {[%emt 0:16:06]} 23. Bd2 {[%emt 0:00:11]} Nf4 {[%emt 0:01:04]} 24. Qf1 {[%emt 0:06:43]} Qd8 {[%emt 0:10:04]} 25. Rad1 {[%emt 0:02:09]} Qb6 {[%emt 0:06:45]} 26. Kh1 {[%emt 0:01:46]} Nh5 {[%emt 0:03:33]} 27. Qf2 {[%emt 0:00:40]} g6 {[%emt 0:01:25]} 28. Bc3 {[%emt 0:01:17]} Nc6 {[%emt 0:02:22]} 29. a3 {[%emt 0:02:49]} Ne7 {[%emt 0:03:11]} 30. Bd4 {[%emt 0:00:29]} Qc7 {[%emt 0:00:12]} 31. Bb1 {[%emt 0:00:48]} Ng3+ {[%emt 0:01:46]} 32. Kg1 {[%emt 0:00:20]} h5 {[%emt 0:00:08]} 33. b4 {[%emt 0:01:10]} Qf4 {[%emt 0:04:05]} 34. Ba1 {[%emt 0:00:22]} f6 {[%emt 0:02:04]} 35. Rd4 {[%emt 0:00:43]} Qb8 {[%emt 0:02:33]} 36. Rd7 {[%emt 0:00:19]} Bc6 {[%emt 0:00:20]} 37. Qa2+ {[%emt 0:00:15]} Nd5 {[%emt 0:02:39]} 38. Rxd5 {[%emt 0:00:06]} Bxd5 {[%emt 0:00:19]} 39. Qxd5+ {[%emt 0:00:04]} Kf8 {[%emt 0:00:29]} 40. Bxg6 {[%emt 0:00:00]} Re7 {[%emt 0:00:00]} 41. Bxf6 {[%emt 0:00:29]} Ne2+ {[%emt 0:01:20]} 42. Rxe2 {[%emt 0:00:08]} Rc1+ {[%emt 0:00:05]} 43. Kf2 {[%emt 0:00:13]} 1-0

[Event "Cracovia Festival-A 2023"]
[Site "Krakow"]
[Date "2024.01.03"]
[Round "8.27"]
[White "Pyrig, Roman"]
[Black "Piekielny, Pawel"]
[Result "0-1"]
[ECO "C11"]
[WhiteElo "2154"]
[BlackElo "2250"]
[Annotator "RC"]
[PlyCount "120"]
[EventDate "2023.12.24"]
[EventType "swiss"]
[EventCountry "POL"]
[SourceTitle "playchess.com"]
[Source "ChessBase"]
[SourceQuality "1"]
[TimeControl "40/5400+30:1800+30"]

1. e4 {[%emt 0:04:21]} e6 {[%emt 0:00:08]} 2. d4 {[%emt 0:00:05]} d5 {[%emt 0:00:05]} 3. Nc3 {[%emt 0:00:02]} Nf6 {[%emt 0:00:08]} 4. e5 {[%emt 0:00:02]} Nfd7 {[%emt 0:00:09]} 5. f4 {[%emt 0:00:02]} c5 {[%emt 0:00:08]} 6. Nf3 {[%emt 0:00:02]} Nc6 {[%emt 0:00:34]} 7. Be3 {[%emt 0:00:10]} a6 {[%emt 0:05:17]} 8. Ne2 {[%emt 0:01:00]} b5 {[%emt 0:04:49]} 9. g3 {[%emt 0:01:48]} b4 {[%emt 0:00:18]} 10. Bg2 {[%emt 0:00:40]} a5 {[%emt 0:00:28]} 11. O-O {[%emt 0:07:37]} cxd4 {[%emt 0:15:03]} 12. Nfxd4 {[%emt 0:01:32]} Nxd4 {[%emt 0:00:12]} 13. Nxd4 {[%emt 0:00:42]} Bc5 {[%emt 0:02:31]} 14. f5 {[%emt 0:07:04]} Nxe5 {[%emt 0:04:31]} 15. fxe6 {[%emt 0:00:06]} Bxe6 {[%emt 0:02:17]} 16. Qh5 {[%emt 0:00:59]} Ng6 {[%emt 0:04:59]} 17. Rae1 {[%emt 0:34:55]} Bxd4 {[%emt 0:07:30]} 18. Bxd4 {[%emt 0:00:02]} O-O {[%emt 0:00:12]} 19. c4 {[%emt 0:00:01]} bxc3 {[%emt 0:03:04]} 20. bxc3 {[%emt 0:00:30]} Rb8 {[%emt 0:01:46]} 21. h4 {[%emt 0:01:23]} Qd7 {[%emt 0:01:25]} 22. Qg5 {[%emt 0:02:49]} h6 {[%emt 0:06:03]} 23. Qd2 {[%emt 0:01:43]} Rfe8 {[%emt 0:09:19]} 24. Rf2 {[%emt 0:02:19]} Bh3 {[%emt 0:03:11]} 25. Ref1 {[%emt 0:00:06]} f6 {[%emt 0:01:52]} 26. Rxf6 {[%emt 0:06:18]} Bxg2 {[%emt 0:17:18]} 27. Rf7 {[%emt 0:00:08]} Qxf7 {[%emt 0:00:39]} 28. Rxf7 {[%emt 0:00:06]} Kxf7 {[%emt 0:00:59]} 29. Qxg2 {[%emt 0:02:15]} Re4 {[%emt 0:00:39]} 30. Qf1+ {[%emt 0:01:18]} Kg8 {[%emt 0:00:24]} 31. Qa6 {[%emt 0:03:53]} Rb2 {[%emt 0:01:24]} 32. Kf1 {[%emt 0:00:58]} Kh7 {[%emt 0:01:10]} 33. h5 {[%emt 0:14:53]} Ne7 {[%emt 0:00:11]} 34. a3 {[%emt 0:00:10]} Rh2 {[%emt 0:02:27]} 35. Bc5 {[%emt 0:04:42]} Rxh5 {[%emt 0:01:09]} 36. Bxe7 {[%emt 0:00:29]} Rxe7 {[%emt 0:00:44]} 37. Qxa5 {[%emt 0:00:59]} Rf5+ {[%emt 0:00:39]} 38. Kg2 {[%emt 0:00:02]} Re2+ {[%emt 0:01:06]} 39. Kh3 {[%emt 0:00:01]} Rh5+ {[%emt 0:03:33]} 40. Kg4 {[%emt 0:00:00]} Re4+ {[%emt 0:00:00]} 41. Kf3 {[%emt 0:00:04]} Rf5+ {[%emt 0:01:22]} 42. Kg2 {[%emt 0:00:01]} Re2+ {[%emt 0:00:15]} 43. Kh3 {[%emt 0:00:01]} Re3 {[%emt 0:05:23]} 44. a4 {[%emt 0:03:59]} Rg5 {[%emt 0:01:04]} 45. Qc7 {[%emt 0:00:03]} Re4 {[%emt 0:04:50]} 46. a5 {[%emt 0:01:42]} Rc4 {[%emt 0:00:06]} 47. Qb8 {[%emt 0:00:57]} Rg6 {[%emt 0:02:28]} 48. Qe5 {[%emt 0:02:09]} Rc5 {[%emt 0:02:27]} 49. c4 {[%emt 0:00:43]} Rxa5 {[%emt 0:03:06]} 50. cxd5 {[%emt 0:21:14]} Ra3 {[%emt 0:00:23]} 51. d6 {[%emt 0:00:02]} Rd3 {[%emt 0:00:06]} 52. Qe4 {[%emt 0:00:01]} Rdxd6 {[%emt 0:00:11]} 53. g4 {[%emt 0:00:04]} Ra6 {[%emt 0:03:06]} 54. g5 {[%emt 0:01:02]} Ra5 {[%emt 0:00:06]} 55. Kh4 {[%emt 0:02:30]} Raxg5 {[%emt 0:00:25]} 56. Qb7 {[%emt 0:00:08]} Rg2 {[%emt 0:01:43]} 57. Kh3 {[%emt 0:00:21]} R6g3+ {[%emt 0:03:18]} 58. Kh4 {[%emt 0:00:04]} Rg4+ {[%emt 0:00:12]} 59. Kh3 {[%emt 0:00:01]} R2g3+ {[%emt 0:00:21]} 60. Kh2 {[%emt 0:00:00]} Rg6 {[%emt 0:00:34]} 0-1